Cogmind - Beta 16 @@@ ROGUE MODE // 2025.12.24 @ 13:25:22 Player: winnking222 Result: Self-destructed Performance ------------- Evolutions (6) 3000 Regions Visited (12) 2400 Robots Destroyed (183) 915 Value Destroyed (7839) 7839 Prototype IDs (29) 580 Alien Tech Used (0) 0 Bonus (6837) 6837 TOTAL SCORE: 21571 Bonus ------- High Alert Combat Kills 2210 Follower Combat Kills 2387 Network Hubs Disabled 400 Registered with UFD 300 Met Optimus in HQ 500 Built Enhanced Grunts 300 A7 Reached Mainframe 300 Met R17 at Cetus 500 Friendly Fire -60 Cogmind --------- Core Integrity 974/1150 Matter 44/300 Energy 535/535 System Corruption 3% Temperature Cool (35) Movement Treading (166) Location -4/Factory Parts ------- > --- POWER (2) -------- Reinforced Fission Core Antimatter Reactor > --- PROPULSION (6) --- Medium Treads Armored Medium Treads Armored Medium Treads Armored Medium Treads Centrium Heavy Treads > --- UTILITY (7) ------ Advanced Cooling System Huge Storage Unit Experimental Sensor Array Advanced Signal Interpreter Improved Transmission Jammer Centrium Medium Armor Plating Centrium Medium Armor Plating > --- WEAPON (4) ------- KE Penetrator KE Penetrator > --- INVENTORY (25) --- Quantum Reactor Meta Core Advanced Heat Sink Huge Storage Unit Long-range Sensor Array Improved Target Analyzer Centrium Medium Armor Plating Experimental Thermal Shield A0-MCA's Component Scanner Wave Gun Smartbomb Launcher Plasma Cutter CPS Tube (2) DRS Beacon (Ready) Peak State ------------ > --- POWER ------------ Quantum Reactor Quantum Reactor > --- PROPULSION ------- Centrium Heavy Treads Centrium Heavy Treads Centrium Heavy Treads > --- UTILITY ---------- Advanced Heat Sink Huge Storage Unit Experimental Sensor Array Improved Transmission Jammer Centrium Medium Armor Plating Centrium Medium Armor Plating > --- WEAPON ----------- KE Penetrator Advanced KE Penetrator Advanced KE Penetrator > --- INVENTORY -------- Quantum Reactor Meta Core Armored Medium Treads Armored Medium Treads Armored Medium Treads Centrium Heavy Treads Advanced Heat Sink Huge Storage Unit Matter Compressor Advanced Signal Interpreter Weapon Mount Centrium Medium Armor Plating Centrium Medium Armor Plating Centrium Medium Armor Plating Experimental Thermal Shield A0-MCA's Component Scanner Improved System Restoration Module Advanced Variable Charge Gun Advanced Variable Charge Gun KE Penetrator Advanced KE Penetrator Plasma Cutter CPS Tube DRS Beacon [Rating: 150] Favorites ----------- Power Quantum Reactor Engine Improved Ion Engine Power Core Neutrino Core Reactor Quantum Reactor Propulsion Light Treads Treads Light Treads Wheel Overtuned Huge Scrapsphere Utility Large Storage Unit Device Advanced Heat Sink Storage Large Storage Unit Processor Advanced Signal Interpreter Protection Centrium Medium Armor Plating Weapon Advanced KE Penetrator Energy Gun Subdweller Laser Ballistic Gun Advanced KE Penetrator Ballistic Cannon Light Cannon Launcher Subdweller Shrapnel Launcher Special Weapon Plasma Cutter Special Melee Weapon Advanced Datajack Build | -11 -10 -10 -10 -8 -8 -6 -6 -6 -6 -6 -5 -4 ------- Run | Yrd Mat Min Sub Rec Scr Fac Ext Cet Arc Hub Fac Fac Slots Evolved 12 | . . . . . . 8 . . . . 2 2 Power 1 | . . . . . . 1 . . . . . . Propulsion 4 | . . . . . . 4 . . . . . . Utility 5 | . . . . . . 3 . . . . 1 1 Weapon 2 | . . . . . . . . . . . 1 1 Parts Attached 130 | 7 6 2 24 2 9 10 21 13 3 3 16 14 Power 18 | 1 1 1 3 . . 4 2 3 . . 1 2 Engine 10 | 1 1 1 3 . . 3 1 . . . . . Core 3 | . . . . . . 1 . . . . . 2 Reactor 5 | . . . . . . . 1 3 . . 1 . Propulsion 33 | 2 . 1 4 2 5 . 10 3 . . 2 4 Treads 27 | 2 . 1 2 2 1 . 10 3 . . 2 4 Leg . | . . . . . . . . . . . . . Wheel 6 | . . . 2 . 4 . . . . . . . Hover . | . . . . . . . . . . . . . Flight . | . . . . . . . . . . . . . Utility 39 | 2 3 . 4 . 1 5 5 4 2 2 7 4 Device 17 | 1 . . . . . 3 3 1 2 2 2 3 Storage 6 | 1 3 . . . 1 1 . . . . . . Processor 3 | . . . . . . 1 . . . . 2 . Hackware . | . . . . . . . . . . . . . Protection 13 | . . . 4 . . . 2 3 . . 3 1 Artifact . | . . . . . . . . . . . . . Weapon 40 | 2 2 . 13 . 3 1 4 3 1 1 6 4 Energy Gun 11 | 2 . . 2 . . 1 3 1 . 1 1 . Energy Cannon . | . . . . . . . . . . . . . Ballistic Gun 23 | . . . 10 . 3 . . 2 . . 5 3 Ballistic Cannon 3 | . 2 . . . . . . . . . . 1 Launcher 1 | . . . 1 . . . . . . . . . Special Weapon 1 | . . . . . . . 1 . . . . . Impact Weapon . | . . . . . . . . . . . . . Slashing Weapon . | . . . . . . . . . . . . . Piercing Weapon . | . . . . . . . . . . . . . Special Melee Weapon 1 | . . . . . . . . . 1 . . . Unidentified Prototypes 11 | . . . . . . 2 1 4 . 2 2 . Corrupted Parts 2 | . . . . . . . . . . . 1 1 System Corruption 7 | . . . . . . . . . . . 3 4 Parts Lost 20 | . . . 3 . . 2 5 . . . 2 8 Power 5 | . . . 1 . . 1 1 . . . 1 1 Propulsion 7 | . . . 2 . . . 3 . . . . 2 Utility 4 | . . . . . . . 1 . . . 1 2 Weapon 4 | . . . . . . 1 . . . . . 3 Highest Loss Streak 4 | . . . 1 . . 2 3 . . . 1 4 To Critical Strikes . | . . . . . . . . . . . . . Average Backups 16 | 5 12 12 12 13 10 14 22 23 23 23 22 20 Power . | 1 2 2 . . . . 1 1 1 1 1 1 Propulsion 2 | 3 3 3 1 1 1 1 5 5 6 6 4 3 Utility 6 | . 1 1 3 6 5 6 10 10 9 9 9 10 Weapon 3 | . 6 5 4 4 2 1 2 2 3 4 4 3 Tool/Special . | . . . . . . . . . . . . . Unused Backups 50 | . 5 3 5 . 6 1 1 6 2 1 9 11 Power 6 | . 1 . 1 . . . . 3 . . . 1 Propulsion 10 | . 3 . . . 2 . . . . . 5 . Utility 15 | . . 1 . . 2 . . 1 2 1 2 6 Weapon 17 | . 1 2 4 . 2 1 1 2 . . 2 2 Tool/Special 2 | . . . . . . . . . . . . 2 Average Slot Usage (%) 89 | . 100 100 99 100 83 76 92 86 80 79 80 83 Engine 7 | . 14 14 13 14 7 10 7 . . . . . Reactor 3 | . . . . . . . 4 12 13 13 10 5 Treads 22 | . 28 28 22 27 24 6 29 27 20 20 17 21 Wheel 3 | . . . 5 . 3 19 4 . . . . . Device 9 | . 14 14 7 . . 12 11 12 13 12 11 14 Storage 9 | . 14 14 14 14 14 6 6 6 6 6 5 5 Processor 1 | . . . . . . 4 2 . . . 4 5 Protection 8 | . . . 6 14 14 1 10 13 13 13 9 5 Energy Gun 5 | . 1 . 2 28 11 . 11 6 . . . . Ballistic Gun 11 | . . . 22 . 7 12 . 5 9 12 16 20 Ballistic Cannon 3 | . 26 28 3 . . . . . . . . . Peak Build Rating 150 | 7 10 11 19 17 38 80 78 132 132 136 150 139 Average Rating 61 | 4 9 10 14 16 18 76 59 101 131 132 144 132 On Entrance 58 | . 7 10 11 17 17 32 78 60 132 132 133 128 Avg Prop Armor Cover (%) 9 | . . . 11 13 13 6 6 . . . . . Naked Turns . | . . . . . . . . . . . . . Heaviest Build 163 | 13 34 34 41 37 37 122 123 148 148 151 159 163 Greatest Support 240 | 40 40 40 40 40 40 48 123 240 240 240 240 216 Greatest Overweight (x) 14 | . . . 2 2 4 2 14 1 . . . 1 Average Overweight (x) . | . . . . . . 1 . . . . . . Largest Inventory Capacity 25 | 8 15 15 15 15 15 25 25 25 25 25 25 25 Average Capacity 19 | 7 13 15 15 15 15 19 25 25 25 25 25 25 Most Carried 25 | 8 15 15 15 15 15 21 25 25 25 25 25 25 Average Carried 18 | 5 12 14 14 15 13 16 23 24 24 24 24 23 Final Capacity 25 | 8 15 15 15 15 15 25 25 25 25 25 25 25 Final Carried 25 | 7 15 15 15 15 14 21 25 25 25 25 25 15 Scrap Suit Usage (%) 1 | . . . . . . 28 . . . . . . Class Distribution -------------------- 51% | Mutant 21% | Scavenger-Tank 19% | Scavenger-Mutant 6% | Scrapper Dominant Class ---------------- Mutant | -10/Materials Mutant | -10/Mines Mutant | -10/Subcaves Mutant | -8/Recycling Mutant | -8/Scraptown Scrapper | -6/Factory Scavenger-Mutant | -6/Extension Scavenger-Mutant | -6/Cetus Scavenger-Mutant | -6/Archives Scavenger-Mutant | -6/Hub_04(d) Scavenger-Tank | -5/Factory Scavenger-Tank | -4/Factory Resources | -11 -10 -10 -10 -8 -8 -6 -6 -6 -6 -6 -5 -4 ----------- Run | Yrd Mat Min Sub Rec Scr Fac Ext Cet Arc Hub Fac Fac Matter Collected 6806 | 270 316 132 811 44 70 300 767 249 213 334 1808 1492 Remotely . | . . . . . . . . . . . . . Salvage Created 9646 | 136 376 77 504 168 . 556 910 42 69 944 3142 2722 Parts 449 | 9 26 2 30 8 . 36 34 . 6 36 133 129 Haulers Intercepted 3 | . 1 . . . . 1 . . . . 1 . Recyclers Shooed 6 | . . . . . . 1 . . . . . 5 Parts Field Recycled . | . . . . . . . . . . . . . Retrieved Matter . | . . . . . . . . . . . . . Parts Self-Destructed 15 | . . . 15 . . . . . . . . . Prevented . | . . . . . . . . . . . . . Parts Restored . | . . . . . . . . . . . . . Kills | -11 -10 -10 -10 -8 -8 -6 -6 -6 -6 -6 -5 -4 ------- Run | Yrd Mat Min Sub Rec Scr Fac Ext Cet Arc Hub Fac Fac Combat Hostiles Destroyed 131 | . 11 3 13 2 . 9 13 . . 11 42 27 Guns 111 | . . . 12 2 . 9 13 . . 9 41 25 Cannons 17 | . 11 3 1 . . . . . . . . 2 AOE 1 | . . . . . . . . . . . 1 . Classes Destroyed 21 | 2 5 1 2 . . 3 3 . 1 1 1 2 Worker 6 | . . . . . . 1 . . . 3 . 2 Builder 11 | . 1 . . . . 2 1 . . . 4 3 Tunneler 4 | 3 . . . . . . . . . . . 1 Hauler 3 | . 1 . . . . 1 . . . . 1 . Recycler 11 | 1 1 . . 1 . . . . . 1 1 6 Operator 2 | . . . . . . . . . 2 . . . Turret 2 | . . . 2 . . . . . . . . . Watcher 11 | . 2 . . . . 1 . . . 1 2 5 Swarmer 19 | . 6 . 4 . . 4 . . . . . 5 Saboteur 1 | . . . . . . . . . . . . 1 Grunt 49 | . 5 2 1 . . 1 4 . . 7 24 5 Brawler 4 | . . . . . . . . . . . 3 1 Duelist 2 | . . . . . . . . . . . 2 . Protector 2 | . . . . . . . . . . 1 1 . Sentry 20 | . . 1 1 2 . . 5 . . 2 6 3 Demolisher 1 | . . . . . . . 1 . . . . . Specialist 3 | . . . . . . . 1 . . . . 2 Hunter 5 | . . . . . . 2 . . . 1 . 2 Programmer 17 | . . . . . . 2 2 . . . 6 7 Heavy 1 | . . . . . . . . . . . . 1 Subdweller 7 | . . . 7 . . . . . . . . . Butcher 1 | . . . . . . . 1 . . . . . Guerrilla 1 | . . . . . . . . 1 . . . . Best Kill Streak 12 | 2 5 1 4 1 . 6 4 . 1 3 6 12 Combat Bots Only 11 | . 3 1 4 1 . 4 4 . . 3 5 11 Max Kills in Single Turn 3 | 1 2 1 2 1 . 1 1 1 1 2 2 3 Gunslinging 1 | . . . 1 . . . . . . . 1 1 Exploded 1 | . . . . . . . . . . . 1 . Melee . | . . . . . . . . . . . . . Uniques/NPCs Destroyed . | . . . . . . . . . . . . . Combat | -11 -10 -10 -10 -8 -8 -6 -6 -6 -6 -6 -5 -4 -------- Run | Yrd Mat Min Sub Rec Scr Fac Ext Cet Arc Hub Fac Fac Hostile Shots Fired 1066 | . 25 20 113 6 . 57 280 11 4 145 164 241 Missed 359 | . 5 6 38 1 . 15 102 6 1 60 56 69 Hits 707 | . 20 14 75 5 . 42 178 5 3 85 108 172 Melee 8 | . . . . . . . . . . . 7 1 Projectile 699 | . 20 14 75 5 . 42 178 5 3 85 101 171 AOE 5 | . . . 3 . . . 2 . . . . . Critical Strikes 30 | . . 2 1 . . 4 3 1 1 5 8 5 Part Disruptions 1 | . . . . . . . . . . . 1 . Damage Taken 11750 | . 241 225 1183 69 . 998 1920 116 96 1503 2272 3127 Core 942 | . 36 32 160 . . 76 171 13 . 91 187 176 Absorbed by Shields 521 | . . . . . . . 494 27 . . . . Reduced by Siege Mode 101 | . . . . . . . . . . . 76 25 Core Remaining (%) 61 | 100 . . . . 8 . . . . 58 81 . Volleys Fired 550 | 14 32 14 111 6 . 39 65 9 19 40 122 79 Largest 4 | 2 2 2 2 2 . 2 2 2 2 2 3 4 Hottest 160 | 100 60 60 100 120 . 112 160 145 70 70 103 152 Shots Fired 1289 | 28 64 28 173 12 . 78 126 15 34 73 357 301 Gun 1146 | 28 . . 146 12 . 78 125 15 34 73 357 278 Cannon 137 | . 64 28 22 . . . . . . . . 23 Launcher 5 | . . . 5 . . . . . . . . . Special 1 | . . . . . . . 1 . . . . . Kinetic 1079 | . 64 28 148 . . 69 5 . 34 73 357 301 Thermal 210 | 28 . . 25 12 . 9 121 15 . . . . Explosive . | . . . . . . . . . . . . . Electromagnetic . | . . . . . . . . . . . . . Robot Hit Streak 39 | 4 7 11 18 21 . 6 15 6 6 10 36 39 Robot Miss Streak 6 | 2 4 2 3 2 . 5 4 4 2 2 6 3 Penetration Max 3 | . . . . . . 1 1 . 1 1 1 3 Secondary Targets 19 | . . . 2 . . . 3 . . . 11 3 Max Gunslinging Chain 2 | . . . 1 . . . 1 . . . 2 1 Shots Hit Robots 756 | 16 31 22 72 6 . 35 89 10 28 43 199 205 Core Hits 373 | 5 16 5 31 3 . 18 41 3 11 30 112 98 Critical Kills 46 | . . . . . . 2 1 . 1 5 17 20 Critical Parts Destroyed 58 | . . . . . . 2 3 . 3 4 20 26 Critical Strikes 119 | 1 2 . 2 . . 4 7 . 4 10 41 48 Burn 4 | 1 . . . . . . 3 . . . . . Destroy 112 | . . . 1 . . 4 4 . 4 10 41 48 Blast 3 | . 2 . 1 . . . . . . . . . Melee Attacks 4 | . . . . . . . . . 4 . . . Impact . | . . . . . . . . . . . . . Slashing . | . . . . . . . . . . . . . Piercing . | . . . . . . . . . . . . . Sneak Attacks 4 | . . . . . . . . . 4 . . . Combat Hostiles . | . . . . . . . . . . . . . Follow-up Attacks . | . . . . . . . . . . . . . Damage Inflicted 21619 | 201 551 385 1765 149 . 1353 2149 276 788 1696 6598 5708 Guns 19257 | 201 . . 1155 122 . 1332 2140 276 788 1280 6563 5400 Cannons 1342 | . 551 381 154 . . . . . . . . 256 Explosions 895 | . . . 456 . . . . . . 404 35 . Melee . | . . . . . . . . . . . . . Ramming 125 | . . 4 . 27 . 21 9 . . 12 . 52 Kinetic 18251 | . 551 381 1724 . . 1170 138 . 788 1280 6563 5656 Thermal 2804 | 201 . . 41 122 . 162 2002 276 . . . . Explosive . | . . . . . . . . . . . . . Electromagnetic 439 | . . . . . . . . . . 404 35 . Impact . | . . . . . . . . . . . . . Slashing . | . . . . . . . . . . . . . Piercing . | . . . . . . . . . . . . . Highest Corruption 7 | . . . . . . 4 5 5 5 6 3 7 Average Corruption 3 | . . . . . . 2 4 5 4 2 2 2 Corruption Purged 15 | . . . . . . . . . 5 . 3 7 Corruption Blocked . | . . . . . . . . . . . . . Effects 116 | . . . . . . 8 36 20 8 1 20 23 Message Errors 22 | . . . . . . 2 6 5 1 1 6 1 Matter Fused 34 | . . . . . . 3 12 5 3 . 3 8 Heat Flow Errors 14 | . . . . . . . 7 1 1 . 1 4 Energy Discharges 18 | . . . . . . 2 3 3 1 . 5 4 Parts Rejected 3 | . . . . . . . . 1 . . 2 . Parts Fused 1 | . . . . . . . 1 . . . . . Data Loss (minor) 10 | . . . . . . . 2 2 2 . 2 2 Data Loss (major) 5 | . . . . . . . 2 2 . . . 1 Misfires 2 | . . . . . . 1 . 1 . . . . Alerts 3 | . . . . . . . 3 . . . . . Weapon Failures 4 | . . . . . . . . . . . 1 3 Overload Shots . | . . . . . . . . . . . . . Overflow Damage 9 | . . . . . . . . . . 9 . . Projectiles . | . . . . . . . . . . . . . Explosions 9 | . . . . . . . . . . 9 . . Melee . | . . . . . . . . . . . . . Knockbacks 23 | . 6 5 3 . . . 2 . . . . 7 Impact 3 | . . . . . . . 2 . . . . 1 Kinetic 19 | . 5 5 3 . . . . . . . . 6 Secondary 1 | . 1 . . . . . . . . . . . Self-Inflicted Damage 428 | . . . . . . 303 . . . 125 . . Shots 6 | . . . . . . 4 . . . 2 . . Rammed 13 | . . 2 . 2 . 1 2 . . 2 . 4 Targets Rammed 14 | . . 2 . 3 . 1 2 . . 2 . 4 Kicked . | . . . . . . . . . . . . . Crushed 1 | . . . . 1 . . . . . . . . Highest Temperature 391 | 96 30 72 20 327 . 332 391 109 151 269 308 195 Average Temperature 81 | 49 8 29 7 137 . 115 113 64 51 67 82 31 Received Heat Transfer 2688 | . 48 132 300 27 . 18 524 18 36 315 628 642 Effects 9 | . . . . . . 3 4 . . . 2 . Shutdowns 2 | . . . . . . 1 1 . . . . . Energy Bleed 2 | . . . . . . . . . . . 2 . Interference 5 | . . . . . . 2 3 . . . . . Siege Activations 8 | . . . . . . . . . . . 6 2 Total Turns 155 | . . . . . . . . . . . 114 41 Longest Duration 44 | . . . . . . . . . . . 44 32 Martial Activations . | . . . . . . . . . . . . . Shielding Activations . | . . . . . . . . . . . . . Robots Disrupted . | . . . . . . . . . . . . . Combat Hostiles . | . . . . . . . . . . . . . Robots Corrupted 2 | . . . . . . . . . . 2 . . Combat Hostiles 2 | . . . . . . . . . . 2 . . Parts Fried 6 | . . . . . . . . . . 6 . . Impact Corruptions . | . . . . . . . . . . . . . Robots Melted . | . . . . . . . . . . . . . Combat Hostiles . | . . . . . . . . . . . . . Parts Melted 16 | 1 . . 1 . . . 14 . . . . . Heat Transferred 5127 | 666 . . 50 150 . 222 3651 388 . . . . Parts Sabotaged . | . . . . . . . . . . . . . Parts Stolen . | . . . . . . . . . . . . . Parts Stripped . | . . . . . . . . . . . . . Power Chain Reactions 1 | . . . . . . . . . . 1 . . Alert | -11 -10 -10 -10 -8 -8 -6 -6 -6 -6 -6 -5 -4 ------- Run | Yrd Mat Min Sub Rec Scr Fac Ext Cet Arc Hub Fac Fac Maximum Alert Level 5 | . . . . . . . 2 2 1 4 5 3 Low Security (%) 44 | 100 100 100 . 100 . 100 29 . 32 36 . . Level 1 9 | . . . . . . . 41 16 67 13 . . Level 2 26 | . . . . . . . 29 83 . 27 32 68 Level 3 12 | . . . . . . . . . . 21 35 31 Level 4 6 | . . . . . . . . . . . 31 . Level 5 . | . . . . . . . . . . . . . High Security . | . . . . . . . . . . . . . Max Security . | . . . . . . . . . . . . . Peak Influence 1614 | 5 115 53 . 83 . 192 699 524 323 1325 1614 1054 Initial 790 | . . . . 18 . . 76 380 150 50 648 790 Average 394 | 1 30 7 . 14 . 84 302 442 236 381 950 694 Influence Increases 7615 | 20 307 117 220 280 . 485 1359 353 236 1698 1644 896 Destroy 0b10 Robot/C 3440 | . 220 80 160 40 . 180 700 160 80 460 820 540 Destroy 0b10 Robot/NC 305 | 20 25 . . 5 . 25 30 10 10 50 45 85 Destroy Leader 588 | . 46 10 . . . 44 96 . . 106 166 120 Allied During Kill 1214 | . . 12 . . . . 386 140 90 586 . . Successful Hack 144 | . . . . 25 . 14 . 19 . 5 69 12 Select Force Hacks 210 | . . . . 210 . . . . . . . . Disable Machine 885 | . 15 15 . . . 150 90 15 45 300 210 45 Destroy Structure 589 | . 1 . . . . 72 27 9 11 161 274 34 Partial Spotted 15 | . . . . . . . . . . . . 15 Lose Combat Pursuer 225 | . . . 60 . . . 30 . . 30 60 45 Influence Decreases 6571 | 20 307 117 181 319 . 329 836 657 467 517 1355 1466 Entered New Map 2220 | . . . . 21 . . 80 299 225 94 677 824 Time Decay 3836 | 20 307 117 156 298 . 309 546 318 222 323 658 562 Lost Part 195 | . . . 25 . . 20 50 . . . 20 80 Lost Ally 320 | . . . . . . . 160 40 20 100 . . Squads Dispatched 40 | . 1 . . . . 6 3 . . 6 15 9 Investigation 12 | . . . . . . 3 1 . . 2 5 1 Extermination 9 | . . . . . . 2 . . . 1 3 3 Reinforcement 12 | . 1 . . . . 1 1 . . 3 2 4 Assault 7 | . . . . . . . 1 . . . 5 1 Garrison . | . . . . . . . . . . . . . Intercept . | . . . . . . . . . . . . . Searches Triggered . | . . . . . . . . . . . . . Construction Impeded 5 | . . . . . . 1 . . . 2 1 1 Haulers Reinforced . | . . . . . . . . . . . . . Active Scanning Responses . | . . . . . . . . . . . . . Cargo Convoy Interrupts . | . . . . . . . . . . . . . Stealth | -11 -10 -10 -10 -8 -8 -6 -6 -6 -6 -6 -5 -4 --------- Run | Yrd Mat Min Sub Rec Scr Fac Ext Cet Arc Hub Fac Fac Distress Signals 7 | . . . . . . 1 1 2 1 . . 2 Communications Jammed 26 | . . . . . . . . . . . 24 2 Distress Signals 26 | . . . . . . . . . . . 24 2 Times Spotted 260 | . 18 4 22 1 . 11 45 9 13 31 59 47 Peak Tracking Total 13 | . 4 2 6 1 . 4 6 5 2 13 5 7 Tactical Retreats 10 | . . . 2 . . . 2 . . 2 2 2 Traps | -11 -10 -10 -10 -8 -8 -6 -6 -6 -6 -6 -5 -4 ------- Run | Yrd Mat Min Sub Rec Scr Fac Ext Cet Arc Hub Fac Fac Traps Triggered 13 | . 3 . 2 . . 3 . . . 2 2 1 Indirectly . | . . . . . . . . . . . . . Trap Hack Attempts . | . . . . . . . . . . . . . Triggered . | . . . . . . . . . . . . . Disarmed . | . . . . . . . . . . . . . Reprogrammed . | . . . . . . . . . . . . . Reused . | . . . . . . . . . . . . . Traps Extracted . | . . . . . . . . . . . . . Installed 1 | . . . . . . . 1 . . . . . Triggered . | . . . . . . . . . . . . . Most Traps Carried 3 | . . 3 3 1 2 1 1 . . . . . Machines | -11 -10 -10 -10 -8 -8 -6 -6 -6 -6 -6 -5 -4 ---------- Run | Yrd Mat Min Sub Rec Scr Fac Ext Cet Arc Hub Fac Fac Machines Disabled 66 | . 1 1 4 . . 10 7 3 3 20 14 3 Max in Single Turn 11 | . 1 1 2 . . 4 1 1 1 11 4 1 Garrison Access 4 | . . . . . . . . . . 1 3 . Network Hub 2 | . . . . . . . . . . 2 . . Energy Cycler 1 | . . . . . . . 1 . . . . . Machines Repaired . | . . . . . . . . . . . . . Machines Dismantled 4 | . . . . . . . 2 1 . 1 . . Machines Sabotaged . | . . . . . . . . . . . . . Overloaded Fab Kills . | . . . . . . . . . . . . . Hacking | -11 -10 -10 -10 -8 -8 -6 -6 -6 -6 -6 -5 -4 --------- Run | Yrd Mat Min Sub Rec Scr Fac Ext Cet Arc Hub Fac Fac Machines Accessed 55 | . 4 . 2 12 4 6 4 2 . 4 14 3 Terminals 21 | . 4 . . 5 . 1 3 2 . 3 3 . Fabricators 3 | . . . . . . 2 . . . . 1 . Repair Stations 2 | . . . . . . . . . . . 1 1 Recycling Units 17 | . . . . 7 . 3 1 . . . 5 1 Scanalyzers 2 | . . . . . . . . . . . 1 1 Garrison Access 4 | . . . . . . . . . . 1 3 . Total Hacks 122 | . 11 . 5 21 16 9 5 5 . 8 34 8 Successful 77 | . 6 . 5 17 16 5 2 3 . 2 17 4 Failed 44 | . 5 . . 4 . 4 3 2 . 6 17 3 Catastrophic 10 | . . . . 1 . 1 . 2 . 1 3 2 Database Lockouts 1 | . . . . . . . . . . . . 1 Manual 63 | . 10 . . 20 . 6 3 1 . 5 16 2 Terminals 45 | . 11 . . 13 . 1 3 5 . 6 6 . Fabricators 5 | . . . . . . 3 . . . . 2 . Repair Stations 5 | . . . . . . . . . . . 2 3 Recycling Units 28 | . . . . 8 . 5 2 . . . 11 2 Scanalyzers 6 | . . . . . . . . . . . 3 3 Garrison Access 12 | . . . . . . . . . . 2 10 . Terminal Hacks 29 | . . . 5 1 16 1 1 3 . 1 1 . Record 22 | . . . 4 . 15 . . 3 . . . . Open Door 2 | . . . . . . 1 1 . . . . . Branch Access Points 1 | . . . . . . . . . . . 1 . Zone Layout 2 | . . . . 1 . . . . . 1 . . Proto ID Catalog 2 | . . . 1 . 1 . . . . . . . Fabricator Hacks 3 | . . . . . . 1 . . . . 2 . Network Status 2 | . . . . . . . . . . . 2 . Build 1 | . . . . . . 1 . . . . . . Repair Station Hacks 3 | . . . . . . . . . . . 2 1 Scan Component 2 | . . . . . . . . . . . 1 1 Repair 1 | . . . . . . . . . . . 1 . Recycling Unit Hacks . | . . . . . . . . . . . . . Scanalyzer 3 | . . . . . . . . . . . 1 2 Retrieve Study 3 | . . . . . . . . . . . 1 2 Garrison Access Hacks 4 | . . . . . . . . . . 1 3 . Seal Access 4 | . . . . . . . . . . 1 3 . Unauthorized Hacks 34 | . 6 . . 15 . 3 1 . . . 8 1 Terminals 17 | . 6 . . 8 . . . . . . 3 . Botnet 8 | . 3 . . 3 . . . . . . 2 . Skim 9 | . 3 . . 5 . . . . . . 1 . Fabricators . | . . . . . . . . . . . . . Repair Stations . | . . . . . . . . . . . . . Recycling Units 17 | . . . . 7 . 3 1 . . . 5 1 Tunnel 7 | . . . . 7 . . . . . . . . Fedlink 10 | . . . . . . 3 1 . . . 5 1 Scanalyzers . | . . . . . . . . . . . . . Garrison Access . | . . . . . . . . . . . . . Data Cores Recovered . | . . . . . . . . . . . . . Used . | . . . . . . . . . . . . . Hacking Detections 18 | . 2 . . 3 . 3 2 2 . 2 3 1 Full Trace Events 3 | . . . . 2 . . . . . 1 . . Feedback Events . | . . . . . . . . . . . . . Feedback Blocked . | . . . . . . . . . . . . . Robot Schematics Acquired . | . . . . . . . . . . . . . Robots Built . | . . . . . . . . . . . . . Authchips . | . . . . . . . . . . . . . Time . | . . . . . . . . . . . . . Total Robot Build Rating . | . . . . . . . . . . . . . Part Schematics Acquired . | . . . . . . . . . . . . . Parts Built 2 | . . . . . . 2 . . . . . . Authchips . | . . . . . . . . . . . . . Time 47 | . . . . . . 47 . . . . . . Total Part Build Rating 10 | . . . . . . 10 . . . . . . Part Studies Acquired 3 | . . . . . . . . . . . 1 2 Parts Repaired . | . . . . . . . . . . . . . Time 99 | . . . . . . . . . . . 99 . Parts Recycled . | . . . . . . . . . . . . . Recycled Matter . | . . . . . . . . . . . . . Retrieved Matter . | . . . . . . . . . . . . . Retrieved Components . | . . . . . . . . . . . . . Parts Scanalyzed . | . . . . . . . . . . . . . Part Schematics Acquired . | . . . . . . . . . . . . . Parts Damaged . | . . . . . . . . . . . . . Bothacking | -11 -10 -10 -10 -8 -8 -6 -6 -6 -6 -6 -5 -4 ------------ Run | Yrd Mat Min Sub Rec Scr Fac Ext Cet Arc Hub Fac Fac Used RIF Installer . | . . . . . . . . . . . . . Robots Hacked 2 | . . . . . . . . . 2 . . . Non-combat 2 | . . . . . . . . . 2 . . . Combat . | . . . . . . . . . . . . . Robot Hacks Applied 4 | . . . . . . . . . 4 . . . parse_system 1 | . . . . . . . . . 1 . . . no_distress 1 | . . . . . . . . . 1 . . . check_alert 2 | . . . . . . . . . 2 . . . Relay Couplers Released 2 | . . . . . . . . . . . 2 . Machine Destruction 2 | . . . . . . . . . . . 2 . Fabnet Peak Effective % . | . . . . . . . . . . . . . Robots Rewired 18 | . . . . . . . 18 . . . . . Allies Hacked 1 | . . . . . . . 1 . . . . . Hacks Repelled . | . . . . . . . . . . . . . Allies | -11 -10 -10 -10 -8 -8 -6 -6 -6 -6 -6 -5 -4 -------- Run | Yrd Mat Min Sub Rec Scr Fac Ext Cet Arc Hub Fac Fac Total Allies 29 | . . 3 . . . . 21 5 . . . . Largest Group 12 | . . 3 2 . . . 12 10 9 6 . . Highest-Rated Group 680 | . . 40 24 . . . 451 680 680 500 . . Highest-Rated Ally 159 | . . 16 16 . . . 159 143 121 96 . . Total Orders . | . . . . . . . . . . . . . Ally Attacks 322 | . . 9 13 . . . 172 48 24 56 . . Total Damage 8124 | . . 132 113 . . . 4007 1243 712 1917 . . Kills 67 | . . 1 2 . . . 32 10 4 18 . . Allies Corrupted 3 | . . . . . . . . . . 3 . . Allies Melted . | . . . . . . . . . . . . . Intel | -11 -10 -10 -10 -8 -8 -6 -6 -6 -6 -6 -5 -4 ------- Run | Yrd Mat Min Sub Rec Scr Fac Ext Cet Arc Hub Fac Fac Active Infowar (turns) 10651 | 69 1031 1001 1965 . . 908 86 388 469 747 2390 1597 Sensors 6183 | . . . . . . 908 86 388 469 747 1988 1597 Seismic 4066 | 69 1031 1001 1965 . . . . . . . . . Jamming 771 | . . . . . . . . . . . 675 96 Robot Analysis Total . | . . . . . . . . . . . . . Derelict Logs Recovered 7 | . . 1 1 . 5 . . . . . . . Drone Launches . | . . . . . . . . . . . . . Drone Recoveries . | . . . . . . . . . . . . . Exploration | -11 -10 -10 -10 -8 -8 -6 -6 -6 -6 -6 -5 -4 ------------- Run | Yrd Mat Min Sub Rec Scr Fac Ext Cet Arc Hub Fac Fac Turns Passed 18609 | 153 1031 1001 3433 1373 2765 1089 1569 717 469 855 2476 1678 Spaces Moved 9970 | 63 533 579 2056 832 1834 1053 552 319 113 382 1086 568 Core 9 | 9 . . . . . . . . . . . . Treads 7291 | 54 533 579 1054 830 1328 . 445 319 113 382 1086 568 Legs . | . . . . . . . . . . . . . Wheels 2670 | . . . 1002 2 506 1053 107 . . . . . Hover . | . . . . . . . . . . . . . Flight . | . . . . . . . . . . . . . Fastest Speed 50 | 50 160 160 120 130 80 70 90 156 160 160 160 160 Average Speed 147 | 144 160 160 141 160 146 84 185 164 160 160 160 160 Slowest Speed 320 | 160 160 160 240 240 160 90 320 237 160 160 160 240 Overloaded Moves . | . . . . . . . . . . . . . Propulsion Burnouts . | . . . . . . . . . . . . . Robots Hopped . | . . . . . . . . . . . . . Potential Cave-ins . | . . . . . . . . . . . . . Cave-ins Triggered . | . . . . . . . . . . . . . Exploration Rate (%) 64 | 5 95 97 88 95 91 35 73 79 77 47 36 16 Regions Visited 12 Branch Regions 8 Pre-discovered Areas 14 | . . 1 3 7 2 1 . . . . . . Known Exits Taken 3 | . . 1 . . . 1 . . . . 1 . Unknown Exits Taken 9 | 1 1 . 1 1 1 . 1 1 1 1 . . Scrap Searched 16 | . . 1 10 . 5 . . . . . . . Spaces Dug 284 | . . . . . . . . . . 191 88 5 Terrain Destroyed 580 | . . . 49 . . 99 5 . 9 211 186 21 Melee . | . . . . . . . . . . . . . Projectile 193 | . . . 1 . . 39 5 . 9 28 92 19 AOE 381 | . . . 48 . . 60 . . . 183 90 . Terrain Rammed . | . . . . . . . . . . . . . Walls Destroyed . | . . . . . . . . . . . . . Machines Disabled . | . . . . . . . . . . . . . Actions | -11 -10 -10 -10 -8 -8 -6 -6 -6 -6 -6 -5 -4 --------- Run | Yrd Mat Min Sub Rec Scr Fac Ext Cet Arc Hub Fac Fac Total 12825 | 97 650 627 2414 860 1921 1213 941 489 371 545 1559 1138 Wait 1612 | . 54 20 158 15 35 81 89 96 222 106 286 450 Move 9958 | 62 532 578 2055 831 1833 1052 551 318 112 381 1085 568 Hop . | . . . . . . . . . . . . . Pick Up 152 | 14 16 5 22 . 18 21 16 12 3 . 15 10 Fast Attach 45 | . . . 4 1 2 1 7 6 2 5 17 . Attach 60 | 7 . . 8 . 8 10 9 2 1 . . 15 Detach 4 | . . . . . . 1 1 . . 1 . 1 Swap 74 | . 6 2 25 2 2 2 9 10 2 2 8 4 Drop 161 | . 10 6 31 2 23 5 13 27 6 5 26 7 Fire 550 | 14 32 14 111 6 . 39 65 9 19 40 122 79 Melee 4 | . . . . . . . . . 4 . . . Ram 1 | . . . . . . 1 . . . . . . Kick . | . . . . . . . . . . . . . Crush 13 | . . 2 . 3 . . 2 . . 2 . 4 Escape Stasis 2 | . . . . . . . 2 . . . . . Rewire 160 | . . . . . . . 160 . . . . . Trap 1 | . . . . . . . 1 . . . . . Miscellaneous 28 | . . . . . . . 16 9 . 3 . . Route ------- -11/Scrapyard -10/Materials (discovered 5 exits: [*Mat x3] / [*Min x2]) -10/Mines (discovered 4 exits: [*Mat x2] / [*Exi] / *Sub) -10/Subcaves (discovered 3 exits: [*Mat x2] / *Rec) -8/Recycling -8/Scraptown (discovered 2 exits: *Fac x2) -6/Factory (discovered 2 exits: *Fac / *Ext) -6/Extension (discovered 3 exits: *Fac x2 / *Cet) -6/Cetus (discovered 2 exits: *Fac / [*Arc]) -6/Archives (discovered 2 exits: *Hub x2) -6/Hub_04(d) -5/Factory (discovered 4 exits: *Fac x2 / *Upp x2) -4/Factory History --------- Turn | Location | Event 6 | -11/Scrapyard | Discovered new exit (range 16) 154 | -11/Scrapyard | Entered Materials 320 | -10/Materials | Build established: Mutant 416 | -10/Materials | Discovered new exit (range 4) 700 | -10/Materials | Discovered new exit (range 14) 806 | -10/Materials | Discovered new exit (range 12) 898 | -10/Materials | Discovered new exit (range 6) 906 | -10/Materials | Discovered new exit (range 13) 1185 | -10/Materials | Entered Mines 1225 | -10/Mines | Identified exit to Subcaves 1270 | -10/Mines | Assisted by bots powering up and referring to "LRC-V3" 1312 | -10/Mines | Found a Scrap Suit stashed away for nefarious purposes 1341 | -10/Mines | Discovered new exit (range 9) 1383 | -10/Mines | Found a damaged Exp. Sensor Array with a note attached 1388 | -10/Mines | Found Prototype Device 1452 | -10/Mines | Found a hidden stash of uninstalled traps 1616 | -10/Mines | Discovered new exit (range 7) 1680 | -10/Mines | Deemed a non-threat by the Exiles lab entrance 1680 | -10/Mines | Discovered new exit (range 5) 1826 | -10/Mines | Learned location of Storage (-8) 2186 | -10/Mines | Entered Subcaves 2186 | -10/Subcaves | Accompanied by 2 allies 2394 | -10/Subcaves | Discovered new exit (range 3) 2479 | -10/Subcaves | Discovered new exit (range 7) 2479 | -10/Subcaves | Ambushed by Subdweller buried in earth 2554 | -10/Subcaves | Shifting Twisted Machinery released Sub. Machine Gun 2554 | -10/Subcaves | Shifting Twisted Machinery released Sub. Beam Cannon 2596 | -10/Subcaves | Visited Clippyterm 2601 | -10/Subcaves | Learned location of Deep Caves (-7) 2601 | -10/Subcaves | Learned location of Section 7 (-2) 2787 | -10/Subcaves | Visited 4L-MR0's lab 2805 | -10/Subcaves | Found Meta Core 3554 | -10/Subcaves | Discovered new exit (range 16) 3563 | -10/Subcaves | Core integrity fell below 50% 4357 | -10/Subcaves | Shifting Twisted Machinery released Mak. System Shield 4442 | -10/Subcaves | Shifting Twisted Machinery released Sub. Optics 4454 | -10/Subcaves | Learned location of Zion (-7) 4454 | -10/Subcaves | Met a Zionite searching for "candidates" 4688 | -10/Subcaves | A swath of the cavern ceiling suddenly collapsed 4800 | -10/Subcaves | Core integrity fell below 20% 4801 | -10/Subcaves | Ambushed by Subdweller buried in earth 5619 | -10/Subcaves | Entered Recycling 6213 | -8/Recycling | Scanned before Scraplab entrance 6974 | -8/Recycling | Entered Scraplab 6987 | -8/Recycling | Discovered new exit (range 3) 6992 | -8/Recycling | Entered Scraptown 7176 | -8/Scraptown | Heard Great Nut preacher, LISTEN AND RECITE! 7191 | -8/Scraptown | Visited Comm Corps 7260 | -8/Scraptown | Visited Symbiants 7586 | -8/Scraptown | Discovered new exit (range 7) 7680 | -8/Scraptown | Scanned Subdweller tech in exchange for log data 7690 | -8/Scraptown | Learned Research terminal intel 7692 | -8/Scraptown | Learned Factory emergency access door positions 7693 | -8/Scraptown | Learned location of Warlord (-5) 7736 | -8/Scraptown | Visited Fellowship of the Rings 7788 | -8/Scraptown | Visited Cave Peace 7834 | -8/Scraptown | Visited Supply Room 7866 | -8/Scraptown | Visited Red Mages 7927 | -8/Scraptown | Visited TADAMA 7962 | -8/Scraptown | Visited UFD Registry 7962 | -8/Scraptown | Registered with UFD as "Phaseguard" 7997 | -8/Scraptown | Visited A0-MCA Data Center 8034 | -8/Scraptown | Visited Science Guys 8072 | -8/Scraptown | Visited Abandonware Association 8080 | -8/Scraptown | Learned abandonware demo "OVRCLOCK.EXE" 8085 | -8/Scraptown | Learned abandonware demo "KABOOM.EXE" 8085 | -8/Scraptown | Learned abandonware demo "MELTYB.EXE" 8110 | -8/Scraptown | Visited Derelict Rescue Squad 8119 | -8/Scraptown | Found DRS Beacon 8143 | -8/Scraptown | Visited Scrapoid Research Area 8154 | -8/Scraptown | Visited Modified Component R&D 8201 | -8/Scraptown | Visited Scrapoid Pod Storage 8222 | -8/Scraptown | Visited Analyses Database 8247 | -8/Scraptown | Visited Science Testing Area 8437 | -8/Scraptown | Given a B rating by A0-MCA 8440 | -8/Scraptown | Found A0-MCA's Component Scanner 8559 | -8/Scraptown | Delivered Scrap Shield to a Scientist 8916 | -8/Scraptown | Found Scrap Suit 9660 | -8/Scraptown | Met Optimus 9660 | -8/Scraptown | Accepted into 0bPrime 9753 | -8/Scraptown | Discovered new exit (range 5) 9757 | -8/Scraptown | Entered Factory 9757 | -6/Factory | Evolved 8 slots: Power x1, Propulsion x4, Utility x3 9795 | -6/Factory | Identified Exp. Sensor Array 9905 | -6/Factory | Fabricated Thermic Laser (x2) 10084 | -6/Factory | Build established: Scrapper 10091 | -6/Factory | Discovered new exit (range 10) 10339 | -6/Factory | Discovered new exit (range 5) 10472 | -6/Factory | Loaded intel: 8 recycling unit locations 10482 | -6/Factory | Learned location of Protoforge (-2) 10845 | -6/Factory | Identified exit to Extension 10846 | -6/Factory | Entered Extension 10913 | -6/Extension | Rescued a captive Derelict 11172 | -6/Extension | Rescued A7 11379 | -6/Extension | Build established: Scavenger-Mutant 11386 | -6/Extension | Rescued a captive Derelict 11391 | -6/Extension | Rescued a captive Derelict 11437 | -6/Extension | Energy Cycler disabled 11437 | -6/Extension | Rescued a captive Derelict 11443 | -6/Extension | Rescued a captive Derelict 11501 | -6/Extension | Spotted B-75 Beast 11514 | -6/Extension | Spotted B-75 Beast 11529 | -6/Extension | Allies destroyed B-75 Beast 11532 | -6/Extension | Allies destroyed B-75 Beast 11537 | -6/Extension | Discovered new exit (range 14) 11556 | -6/Extension | Lost 3 allies 11683 | -6/Extension | Loaded intel: 1 recycling unit location 12005 | -6/Extension | Lost 3 parts (1p1n1u) 12246 | -6/Extension | First assault squad dispatched 12329 | -6/Extension | Discovered new exit (range 10) 12332 | -6/Extension | Discovered new exit (range 6) 12333 | -6/Extension | Lost 5 allies 12415 | -6/Extension | Entered Cetus 12415 | -6/Cetus | Accompanied by 7 allies (A7) 12420 | -6/Cetus | Acquired a Cetus Manufacturing Module code from A7 12449 | -6/Cetus | Spotted Cetus Guard 12450 | -6/Cetus | Allies destroyed Cetus Guard 12451 | -6/Cetus | Spotted Cetus Guard 12452 | -6/Cetus | Allies destroyed Cetus Guard 12571 | -6/Cetus | Escorted A7 to Cetus Mainframe 12595 | -6/Cetus | Started Cetus Manufacturing Module 12618 | -6/Cetus | Discovered new exit (range 15) 12620 | -6/Cetus | Manufactured an Enhanced Grunt 12645 | -6/Cetus | Manufactured an Enhanced Grunt 12670 | -6/Cetus | Manufactured an Enhanced Grunt 12695 | -6/Cetus | Manufactured an Enhanced Grunt 12695 | -6/Cetus | Spotted Cetus Guard 12695 | -6/Cetus | Spotted Cetus Guard 12699 | -6/Cetus | Spotted Cetus Guard 12703 | -6/Cetus | Allies destroyed Cetus Guard 12705 | -6/Cetus | Spotted Cetus Guard 12706 | -6/Cetus | Allies destroyed Cetus Guard 12718 | -6/Cetus | Allies destroyed Cetus Guard 12720 | -6/Cetus | Manufactured an Enhanced Grunt 12722 | -6/Cetus | Allies destroyed Cetus Guard 12727 | -6/Cetus | Discovered new exit (range 15) 12737 | -6/Cetus | Met Revision 17 13132 | -6/Cetus | Entered Archives 13132 | -6/Archives | Accompanied by 9 allies (A7) 13137 | -6/Archives | Received a hacking code to weaken MAIN.C 13191 | -6/Archives | Discovered new exit (range 16) 13235 | -6/Archives | Discovered new exit (range 16) 13601 | -6/Archives | Entered Hub_04(d) 13601 | -6/Hub_04(d) | Accompanied by 6 allies 13926 | -6/Hub_04(d) | Discovered new exit (range 14) 14187 | -6/Hub_04(d) | Found Prototype Device 14187 | -6/Hub_04(d) | Identified Exp. Thermal Shield 14366 | -6/Hub_04(d) | Network Hub disabled 14424 | -6/Hub_04(d) | Spotted Lightning 14424 | -6/Hub_04(d) | Spotted Lightning 14424 | -6/Hub_04(d) | Spotted Lightning 14453 | -6/Hub_04(d) | Network Hub disabled 14453 | -6/Hub_04(d) | Spotted Lightning 14456 | -6/Hub_04(d) | Entered Factory 14456 | -5/Factory | Evolved 2 slots: Utility x1, Weapon x1 14466 | -5/Factory | Lost 4 allies 14653 | -5/Factory | Discovered new exit (range 11) 14756 | -5/Factory | First assault squad dispatched 14828 | -5/Factory | Build established: Scavenger-Tank 15144 | -5/Factory | Loaded intel: 8 recycling unit locations 15221 | -5/Factory | Discovered new exit (range 13) 16757 | -5/Factory | Discovered new exit (range 14) 16853 | -5/Factory | Identified exit to Upper Caves 16930 | -5/Factory | Identified exit to Factory 16932 | -5/Factory | Entered another Factory area 16932 | -4/Factory | Evolved 2 slots: Utility x1, Weapon x1 17070 | -4/Factory | Central database locked down 17932 | -4/Factory | First assault squad dispatched 18365 | -4/Factory | Loaded intel: 8 recycling unit locations 18575 | -4/Factory | Lost 4 parts (1p1n2u) 18610 | -4/Factory | Self-destructed Last Messages --------------- 18597_ Dropped Matter Compressor. 18597_ Slug penetrates G-67 Veteran. 18597_ G-67 Veteran suffers critical hit (Destroy). 18597_ Destroyed Flexi-carbon Leg. 18597_ G-67 Veteran knocked back. 18598_ Extracted 85 matter. 18600_ Critical hit (Burn: +37). 18600_ Slug penetrates G-67 Veteran. 18600_ G-67 Veteran destroyed. 18601_ U-05 Engineer builds a Wall. 18604_ Slug penetrates Wall. 18604_ G-67 Veteran suffers critical hit (Destroy). 18604_ Destroyed Flexi-carbon Leg. 18605_ U-05 Engineer builds a Wall. 18606_ R-10 Processor collects Plasma Rifle. 18607_ Slug penetrates G-67 Veteran. 18607_ Slug penetrates Wall. 18607_ U-05 Engineer call for reinforcements jammed. 18608_ U-05 Engineer builds a Wall. 18609_ Hyp. Gauss Cannon+ destroyed. Map ----- +----------------------------------------------------+ | ?????????????????????????????????????????????????? | | ?????????????????????????????????????????????????? | | ?????????????????????????????????????????????????? | | ?????????????????????????????????????????????????? | | ?????????????????????????????????????????????????? | | ?????????????????????????????????????????????????? | | ????????????????????????? ??????????????????????? | | ????????????????????????? ??????????????????????? | | ????????????????????????? ??????????????????????? | | ?????????????????????????u ?? "????????????????? | | ????????????????????????? ?? "????????????????? | | ????????????????????????? R?? "????????????????? | | ????????????????????????? ?? ""????x??????????? | | ????????????????????????#==? ""???????????????? | | ????????????????????????#[#?# k ???????????????? | | ????????????????????????#%#?# "" ? x? ?????????? | | ???????#????????????????#%#?# "" ???????? | | ???????? ??????????????#[#?# """ ?????? | | ?????????? ##??????????#=#?# """ ?????? | | ?????????Y?? ??u?????#%#?# " ?????? | | ??????????????# ????###g### ??????? | | ??????????????# #######;#;[##![= " ?????? | | ?????????????????##u !%=!*#!%![ ???????? | | ?????????????????##% % *m==+*[!"" #??????????? | | ??????????????????#% g [[!#% %" !#??????????? | | ??????????????????# % g @%!#[%%% !]#??????????? | | ??????????????????###+#######! * !=%=% ????????? | | ?????????A?????????# %= # !!# ??????? | | ???????????????????# !""" # !%#??????????? | | ???????????????????#! """ +R " ?????????? | | ???????????????????# """ # # ????????? | | ???????????????????# # ### #? ????????? | | ???????????????????# """ # #???#??????????? | | ???????????????????# """ # #??????????????? | | ???????????????????# """ # g g#??????????????? | | ???????????????????# + A#??????????????? | | ???????????????????##########R #??????????????? | | ???????????????????????????# #??????????????? | | ???????????????????????????#T #??????????????? | | ???????????????????????????## #??????????????? | | ????????????????????????????# #??????????????? | | ??????????????############### #??????????????? | | ?????????????? #??????????????? | | ????????????? #??????????????? | | ????????????? "" ###+##########?? | | ????????????? Y" # #?? | | ????????????? "" #""" #?? | | ????????#+?????####### #"R """ #?? | | ???????? ???????????# = #""" """ #?? | | ???????? ????? ?????# """ # "" """ #?? | +----------------------------------------------------+ Best States ------------- Heat Dissipation 75 Energy Generation 45 Energy Capacity 600 Matter Stores 300 Matter Capacity 300 Sight Range 16 Robot Scan Range 20 Terrain Scan Density 10 Jamming Range 14 Armor Coverage 1200 Evasion (%) 50 Targeting Accuracy 20 Target Analysis 6 Recoil Reduction 6 Item Schematics ----------------- None Robot Schematics ------------------ None Fabricated ------------ Thermic Laser | x2 | -6/Factory | Preloaded Repaired ---------- Nothing Studied --------- KE Penetrator | -5/Factory | Hacked Hyp. Coil Gun | -4/Factory | Hacked Hyp. Gauss Cannon | -4/Factory | Hacked Alien Tech Used ----------------- None Achievements -------------- Better Safe Than Exploded Junior Dev Low-level Research Challenges ------------ None Game ------ Seed ProtonColdCompressor Manual? 0 Play Time 01:59:33 Cumulative 212.5 hours Start 2025.12.23 @ 13:38:36 End 2025.12.24 @ 13:25:22 Sessions 5 Manual Loads 0 Difficulty Rogue Special Mode None Game No. 295 Rogue 295 Adventurer 0 Explorer 0 Win Type - Total 3 Types 2/0/0/1/0/0/0/0/0/0 Lore% 74 Gallery% 73 Achievement% 48 Wizard Run 0 Options --------- Layout 0 ASCII 0 Keyboard 0 Movement Mouse Keybinds 0 Fullscreen 1 Font 16/SmallcapsGlow Map View 75x55 Zoom Use 0% Tactical HUD 1 Map Filters NONE Filters NONE Steam 1 RUN: 20977bdb-b64d-403e-945e-9886100822fd